Cogmind - Beta 17 @@@ ROGUE MODE // 2026.08.06 @ 13:56:33 Player: Floof Enjoyer Result: Destroyed by G-47 Trooper with Particle Gun Performance ------------- Evolutions (2) 1000 Regions Visited (3) 600 Robots Destroyed (34) 170 Value Destroyed (872) 872 Prototype IDs (1) 20 Alien Tech Used (0) 0 Bonus (0) 0 TOTAL SCORE: 2662 Bonus ------- None Cogmind --------- Core Integrity 0/550 Matter 164/300 Energy 80/100 System Corruption 0% Temperature Cool (18) Movement Core (200) Ox3 Location -8/Materials Parts ------- > --- POWER (1) -------- (None) > --- PROPULSION (4) --- (None) > --- UTILITY (4) ------ Medium Storage Unit Visual Processing Unit Signal Interpreter > --- WEAPON (2) ------- (None) > --- INVENTORY (10) --- Weight Redist. System Hacking Suite Peak State ------------ > --- POWER ------------ Light Ion Engine > --- PROPULSION ------- Wheel Wheel Armored Wheel Armored Wheel > --- UTILITY ---------- Heat Sink Cooling System Medium Storage Unit Visual Processing Unit > --- WEAPON ----------- Small Laser Precision Beam Rifle > --- INVENTORY -------- Heat Sink Weight Redist. System Signal Interpreter Hacking Suite Small Laser Light Assault Rifle Mini Grenade Launcher Mini Grenade Launcher [Rating: 19] Favorites ----------- Power Ion Engine Engine Ion Engine Propulsion Compact Wheel Treads Improved Treads Wheel Compact Wheel Utility Small Storage Unit Device Heat Sink Storage Small Storage Unit Processor Visual Processing Unit Weapon Medium Laser Energy Gun Medium Laser Ballistic Gun Light Assault Rifle Launcher Mini Grenade Launcher Build | -11 -10 -9 -8 ------- Run | Yrd Mat Mat Mat Slots Evolved 4 | . . 2 2 Power . | . . . . Propulsion 2 | . . 2 . Utility 2 | . . . 2 Weapon . | . . . . Parts Attached 32 | 8 . 14 10 Power 3 | 1 . 2 . Engine 3 | 1 . 2 . Core . | . . . . Reactor . | . . . . Propulsion 8 | 2 . 4 2 Treads 1 | . . 1 . Leg . | . . . . Wheel 7 | 2 . 3 2 Hover . | . . . . Flight . | . . . . Utility 10 | 3 . 4 3 Device 6 | 2 . 3 1 Storage 2 | 1 . 1 . Processor 2 | . . . 2 Hackware . | . . . . Protection . | . . . . Artifact . | . . . . Weapon 11 | 2 . 4 5 Energy Gun 7 | 2 . 3 2 Energy Cannon . | . . . . Ballistic Gun 1 | . . . 1 Ballistic Cannon . | . . . . Launcher 3 | . . 1 2 Special Weapon . | . . . . Impact Weapon . | . . . . Slashing Weapon . | . . . . Piercing Weapon . | . . . . Special Melee Weapon . | . . . . Unidentified Prototypes 1 | . . . 1 Parts Lost 22 | . . 9 13 Power 3 | . . 2 1 Propulsion 7 | . . 3 4 Utility 5 | . . 2 3 Weapon 7 | . . 2 5 Highest Loss Streak 13 | . . 6 13 To Critical Strikes 1 | . . . 1 Average Backups 5 | 2 4 5 6 Power . | . 1 . . Propulsion . | . 1 . . Utility 2 | . . 3 3 Weapon 1 | . 1 1 2 Tool/Special . | . . . . Unused Backups 3 | . . 1 2 Power . | . . . . Propulsion 1 | . . 1 . Utility 2 | . . . 2 Weapon . | . . . . Tool/Special . | . . . . Average Slot Usage (%) 74 | . 100 63 78 Engine 8 | . 14 8 5 Treads 2 | . . 4 . Wheel 19 | . 28 12 25 Device 10 | . 14 6 13 Storage 10 | . 14 11 9 Processor 2 | . . . 8 Energy Gun 19 | . 28 20 11 Peak Build Rating 19 | 9 9 10 19 Average Rating 9 | 6 9 6 14 On Entrance 6 | . 9 9 8 Avg Prop Armor Cover (%) 11 | . . . 11 Naked Turns . | . . . . Heaviest Build 19 | 15 15 16 19 Greatest Support 48 | 32 32 48 34 Greatest Overweight (x) 4 | 1 . 3 4 Average Overweight (x) . | . . . . Largest Inventory Capacity 10 | 8 8 10 10 Average Capacity 8 | 7 8 8 10 Most Carried 10 | 4 6 9 10 Average Carried 5 | 2 4 5 6 Final Capacity 10 | 8 8 10 10 Final Carried 8 | 3 6 8 2 Class Distribution -------------------- 59% | Mutant 40% | Scavenger-Mutant Dominant Class ---------------- Mutant | -10/Materials Mutant | -9/Materials Scavenger-Mutant | -8/Materials Resources | -11 -10 -9 -8 ----------- Run | Yrd Mat Mat Mat Matter Collected 489 | 270 7 140 72 Remotely . | . . . . Salvage Created 972 | 151 34 407 380 Parts 48 | 11 4 19 14 Haulers Intercepted 1 | . . 1 . Recyclers Shooed . | . . . . Parts Field Recycled . | . . . . Retrieved Matter . | . . . . Parts Self-Destructed . | . . . . Prevented . | . . . . Parts Restored . | . . . . Kills | -11 -10 -9 -8 ------- Run | Yrd Mat Mat Mat Combat Hostiles Destroyed 20 | . 1 10 9 Guns 12 | . . 10 2 AOE 8 | . 1 . 7 Classes Destroyed 11 | 3 3 4 1 Worker 2 | 1 . 1 . Builder 1 | . 1 . . Tunneler 3 | 3 . . . Hauler 1 | . . 1 . Recycler 2 | 1 . . 1 Operator 2 | . 1 . 1 Watcher 3 | . . 2 1 Swarmer 4 | . . 4 . Grunt 12 | . 1 5 6 Duelist 1 | . . 1 . Sentry 3 | . . . 3 Best Kill Streak 6 | 2 3 4 6 Combat Bots Only 5 | . 1 4 5 Max Kills in Single Turn 3 | 1 3 1 2 Gunslinging . | . . . . Exploded 2 | . 1 . 2 Melee . | . . . . Uniques/NPCs Destroyed . | . . . . Combat | -11 -10 -9 -8 -------- Run | Yrd Mat Mat Mat Hostile Shots Fired 206 | . 6 105 95 Missed 45 | . 2 24 19 Hits 161 | . 4 81 76 Melee 8 | . . 8 . Projectile 153 | . 4 73 76 Critical Strikes 8 | . . 2 6 Damage Taken 2466 | . 44 1023 1399 Core 862 | . 23 284 555 Absorbed by Shields . | . . . . Core Remaining (%) 73 | 100 90 29 . Volleys Fired 97 | 14 7 55 21 Largest 2 | 2 2 2 2 Hottest 101 | 100 100 100 101 Shots Fired 184 | 28 14 102 40 Gun 175 | 28 14 102 31 Cannon . | . . . . Launcher 9 | . . . 9 Special . | . . . . Kinetic 3 | . . . 3 Thermal 172 | 28 14 102 28 Explosive 9 | . . . 9 Electromagnetic . | . . . . Robot Hit Streak 12 | 6 8 12 11 Robot Miss Streak 5 | 2 2 5 2 Penetration Max . | . . . . Secondary Targets 4 | . . 3 1 Max Gunslinging Chain 1 | . . 1 1 Shots Hit Robots 123 | 18 9 62 34 Core Hits 65 | 6 4 26 29 Critical Kills . | . . . . Critical Parts Destroyed . | . . . . Critical Strikes 3 | 1 . 2 . Burn 3 | 1 . 2 . Melee Attacks . | . . . . Impact . | . . . . Slashing . | . . . . Piercing . | . . . . Sneak Attacks . | . . . . Combat Hostiles . | . . . . Follow-up Attacks . | . . . . Damage Inflicted 2510 | 238 352 804 1116 Guns 1447 | 238 76 804 329 Cannons . | . . . . Explosions 1063 | . 276 . 787 Melee . | . . . . Ramming . | . . . . Kinetic 21 | . . . 21 Thermal 1426 | 238 76 804 308 Explosive 1063 | . 276 . 787 Electromagnetic . | . . . . Impact . | . . . . Slashing . | . . . . Piercing . | . . . . Highest Corruption . | . . . . Average Corruption . | . . . . Corruption Purged . | . . . . Corruption Blocked . | . . . . Overload Shots . | . . . . Overflow Damage 60 | . 26 . 34 Projectiles . | . . . . Explosions 60 | . 26 . 34 Melee . | . . . . Knockbacks . | . . . . Impact . | . . . . Kinetic . | . . . . Secondary . | . . . . Self-Inflicted Damage 239 | . . . 239 Shots 8 | . . . 8 Rammed . | . . . . Targets Rammed . | . . . . Kicked . | . . . . Crushed . | . . . . Highest Temperature 401 | 176 277 401 73 Average Temperature 102 | 74 127 120 34 Received Heat Transfer 966 | . 24 330 612 Effects 3 | . . 3 . Shutdowns 1 | . . 1 . Matter Decay 1 | . . 1 . Damage (minor) 1 | . . 1 . Siege Activations . | . . . . Martial Activations . | . . . . Shielding Activations . | . . . . Robots Disrupted . | . . . . Combat Hostiles . | . . . . Robots Corrupted . | . . . . Combat Hostiles . | . . . . Parts Fried . | . . . . Impact Corruptions . | . . . . Robots Melted . | . . . . Combat Hostiles . | . . . . Parts Melted 3 | 2 . 1 . Heat Transferred 3927 | 777 222 2245 683 Parts Sabotaged . | . . . . Parts Stolen . | . . . . Parts Stripped . | . . . . Power Chain Reactions . | . . . . Alert | -11 -10 -9 -8 ------- Run | Yrd Mat Mat Mat Maximum Alert Level . | . . . . Low Security (%) 100 | 100 100 100 100 Level 1 . | . . . . Level 2 . | . . . . Level 3 . | . . . . Level 4 . | . . . . Level 5 . | . . . . High Security . | . . . . Max Security . | . . . . Peak Influence 112 | 5 103 106 112 Initial 42 | . 3 42 37 Average 28 | 1 12 43 27 Influence Increases 707 | 25 118 267 297 Destroy 0b10 Robot/C 400 | . 20 200 180 Destroy 0b10 Robot/NC 70 | 25 10 20 15 Destroy Leader 108 | . 10 46 52 Disable Machine 45 | . 45 . . Destroy Structure 69 | . 18 1 50 Lose Combat Pursuer 15 | . 15 . . Influence Decreases 595 | 20 20 280 275 Entered New Map 116 | . 2 61 53 Time Decay 316 | 20 18 169 109 Lost Part 163 | . . 50 113 Squads Dispatched 5 | . 1 2 2 Investigation 1 | . . 1 . Extermination . | . . . . Reinforcement 3 | . 1 1 1 Assault . | . . . . Garrison 1 | . . . 1 Intercept . | . . . . Searches Triggered . | . . . . Construction Impeded 1 | . . . 1 Haulers Reinforced . | . . . . Active Scanning Responses . | . . . . Cargo Convoy Interrupts . | . . . . Stealth | -11 -10 -9 -8 --------- Run | Yrd Mat Mat Mat Distress Signals . | . . . . Communications Jammed . | . . . . Distress Signals . | . . . . Times Spotted 40 | . 3 20 17 Peak Tracking Total 7 | . 1 6 7 Tactical Retreats 1 | . 1 . . Traps | -11 -10 -9 -8 ------- Run | Yrd Mat Mat Mat Traps Triggered 3 | . . 1 2 Indirectly . | . . . . Trap Hack Attempts . | . . . . Triggered . | . . . . Disarmed . | . . . . Reprogrammed . | . . . . Reused . | . . . . Traps Extracted . | . . . . Installed . | . . . . Triggered . | . . . . Machines | -11 -10 -9 -8 ---------- Run | Yrd Mat Mat Mat Machines Disabled 3 | . 3 . . Max in Single Turn 3 | . 3 . . Machines Repaired . | . . . . Machines Dismantled . | . . . . Machines Sabotaged . | . . . . Overloaded Fab Kills . | . . . . Hacking | -11 -10 -9 -8 --------- Run | Yrd Mat Mat Mat Machines Accessed . | . . . . Terminals . | . . . . Fabricators . | . . . . Repair Stations . | . . . . Recycling Units . | . . . . Scanalyzers . | . . . . Garrison Access . | . . . . Total Hacks . | . . . . Successful . | . . . . Failed . | . . . . Catastrophic . | . . . . Database Lockouts . | . . . . Manual . | . . . . Terminals . | . . . . Fabricators . | . . . . Repair Stations . | . . . . Recycling Units . | . . . . Scanalyzers . | . . . . Garrison Access . | . . . . Terminal Hacks . | . . . . Fabricator Hacks . | . . . . Repair Station Hacks . | . . . . Recycling Unit Hacks . | . . . . Scanalyzer . | . . . . Garrison Access Hacks . | . . . . Unauthorized Hacks . | . . . . Terminals . | . . . . Fabricators . | . . . . Repair Stations . | . . . . Recycling Units . | . . . . Scanalyzers . | . . . . Garrison Access . | . . . . Data Cores Recovered . | . . . . Used . | . . . . Hacking Detections . | . . . . Full Trace Events . | . . . . Feedback Events . | . . . . Feedback Blocked . | . . . . Robot Schematics Acquired . | . . . . Robots Built . | . . . . Authchips . | . . . . Time . | . . . . Total Robot Build Rating . | . . . . Part Schematics Acquired . | . . . . Parts Built . | . . . . Authchips . | . . . . Time . | . . . . Total Part Build Rating . | . . . . Part Studies Acquired . | . . . . Parts Repaired . | . . . . Time . | . . . . Parts Recycled . | . . . . Recycled Matter . | . . . . Retrieved Matter . | . . . . Retrieved Components . | . . . . Parts Scanalyzed . | . . . . Part Schematics Acquired . | . . . . Parts Damaged . | . . . . Bothacking | -11 -10 -9 -8 ------------ Run | Yrd Mat Mat Mat Used RIF Installer . | . . . . Robots Hacked . | . . . . Non-combat . | . . . . Combat . | . . . . Robot Hacks Applied . | . . . . Relay Couplers Released . | . . . . Fabnet Peak Effective % . | . . . . Robots Rewired . | . . . . Allies Hacked . | . . . . Hacks Repelled . | . . . . Allies | -11 -10 -9 -8 -------- Run | Yrd Mat Mat Mat Total Allies . | . . . . Largest Group . | . . . . Highest-Rated Group . | . . . . Highest-Rated Ally . | . . . . Total Orders . | . . . . Ally Attacks . | . . . . Total Damage . | . . . . Kills . | . . . . Allies Corrupted . | . . . . Allies Melted . | . . . . Intel | -11 -10 -9 -8 ------- Run | Yrd Mat Mat Mat Active Infowar (turns) 558 | 82 159 63 254 Optics 254 | . . . 254 Terrain 227 | 5 159 63 . Seismic 77 | 77 . . . Robot Analysis Total . | . . . . Derelict Logs Recovered . | . . . . Drone Launches . | . . . . Drone Recoveries . | . . . . Exploration | -11 -10 -9 -8 ------------- Run | Yrd Mat Mat Mat Turns Passed 999 | 135 159 436 269 Spaces Moved 636 | 76 136 222 202 Core 21 | 5 . 7 9 Treads 62 | . . 62 . Legs . | . . . . Wheels 553 | 71 136 153 193 Hover . | . . . . Flight . | . . . . Fastest Speed 50 | 50 100 80 80 Average Speed 98 | 97 100 109 86 Slowest Speed 250 | 100 100 200 250 Overloaded Moves . | . . . . Propulsion Burnouts . | . . . . Robots Hopped . | . . . . Potential Cave-ins . | . . . . Cave-ins Triggered . | . . . . Exploration Rate (%) 20 | 3 33 24 22 Regions Visited 3 Branch Regions . Pre-discovered Areas . | . . . . Known Exits Taken . | . . . . Unknown Exits Taken 3 | 1 1 1 . Scrap Searched . | . . . . Spaces Dug . | . . . . Terrain Destroyed 70 | . 17 . 53 Melee . | . . . . Projectile . | . . . . AOE 70 | . 17 . 53 Terrain Rammed . | . . . . Walls Destroyed . | . . . . Machines Disabled . | . . . . Actions | -11 -10 -9 -8 --------- Run | Yrd Mat Mat Mat Total 825 | 109 145 314 257 Wait 6 | . . 2 4 Move 633 | 75 135 221 202 Hop . | . . . . Pick Up 41 | 11 3 17 10 Fast Attach 1 | . . . 1 Attach 32 | 7 . 11 14 Detach . | . . . . Swap 7 | 1 . 3 3 Drop 8 | 1 . 5 2 Fire 97 | 14 7 55 21 Melee . | . . . . Ram . | . . . . Kick . | . . . . Crush . | . . . . Escape Stasis . | . . . . Rewire . | . . . . Trap . | . . . . Miscellaneous . | . . . . Route ------- -11/Scrapyard -10/Materials -9/Materials -8/Materials (discovered 1 exit: [*Sto]) History --------- Turn | Location | Event 36 | -11/Scrapyard | Discovered new exit (range 16) 136 | -11/Scrapyard | Entered Materials 277 | -10/Materials | Discovered new exit (range 16) 295 | -10/Materials | Entered another Materials area 295 | -9/Materials | Evolved 2 slots: Propulsion x2 316 | -9/Materials | Build established: Mutant 398 | -9/Materials | Lost 6 parts (1p3n1u1w) 529 | -9/Materials | Core integrity fell below 50% 727 | -9/Materials | Discovered new exit (range 4) 731 | -9/Materials | Entered another Materials area 731 | -8/Materials | Evolved 2 slots: Utility x2 862 | -8/Materials | Build established: Scavenger-Mutant 923 | -8/Materials | Discovered new exit (range 14) 952 | -8/Materials | Garrison activated, responded to threat 976 | -8/Materials | Core integrity fell below 50% 995 | -8/Materials | Core integrity fell below 20% 1000 | -8/Materials | Destroyed by G-47 Trooper with Particle Gun Last Messages --------------- The unstable cave ceiling collapses. Processing Tank disabled. U-05 Engineer builds a Wall. Critical hit (Burn: +37). Critical hit (Destroy). Prc. Beam Rifle destroyed. Heat Sink destroyed. The unstable cave ceiling collapses. Critical hit (Burn: +37). The unstable cave ceiling collapses. Sml. Laser destroyed. U-05 Engineer lays Concrete. G-47 Trooper destroyed. Mni. Grenade Launcher destroyed. Destroyed Mni. Grenade Launcher. Y-45 Defender destroyed. U-05 Engineer lays Concrete. Acquired 32 matter. U-05 Engineer builds a Wall. U-05 Engineer lays Concrete. Map ----- +----------------------------------------------------+ | ?????????????????????????????????????????????????? | | ?????????????????????????????????????????????????? | | ?????????????????????????????????????????????????? | | ?????????????????????????????????????????????????? | | ?????????????????????????????????????????????????? | | ?????????????????????????????????????????????????? | | ?????????????????????????????????????????????????? | | ?????????????????????????????????????????????????? | | ?????????????????????????????????????????????????? | | ?????????????????????????????????????????????????? | | ???????????????????????????????????? ????????????? | | ???????????????????????????????????? ????????????? | | ???????????????????????????????????? ????????????? | | ???????????????????????????????????? ????????????? | | ???????????????????????????????????? ????????????? | | ???????????????????????????????????? ????????????? | | ????????????????????????????????????